bitfinex/quotes_ETHUSD_20250319
["timestamp","ask_amount","ask_price","bid_price","bid_amount"]
[1742392036866,4.9441,2022.7,2022.3,4.94486]
[1742392037202,0.7651,2022.8,2022.4,4.94456]
[1742392037372,4.94326,2023.0,2022.4,9.88884]
[1742392037569,3.0,2023.0,2022.5,5.576]
[1742392037773,4.94399,2022.7,2022.2,11.31616]
[1742392037995,5.816615,2022.9,2022.4,4.94449]
[1742392038275,5.816545,2022.9,2022.4,4.94449]
[1742392038484,9.88765,2022.8,2022.3,4.94471]
[1742392038690,4.94376,2022.8,2022.3,4.94471]
[1742392038899,5.5257605,2022.7,2022.2,16.26097]
[1742392039125,4.94455,2022.5,2022.0,4.94548]
[1742392039287,5.76373,2022.6,2022.1,4.94531]
[1742392039472,0.8196,2022.6,2021.9,5.596]
[1742392039675,4.94497,2022.3,2021.9,5.596]
[1742392039971,4.94497,2022.3,2021.5,4.94671]
[1742392039972,4.94581,2022.0,2021.5,4.94671]
[1742392040171,9.89142,2022.0,2021.5,4.94678]
[1742392040399,4.9457,2022.0,2021.6,4.94648]
[1742392040670,0.8196,2022.1,2021.5,3.0]
[1742392040883,4.9451,2022.3,2021.9,4.94572]
[1742392041086,6.571285,2022.3,2021.8,4.94596]
[1742392041469,11.516375,2022.3,2021.8,4.94589]
[1742392041668,11.516375,2022.3,2021.9,4.94572]
[1742392041903,1.626375,2022.3,2021.7,4.94633]
[1742392042102,4.94599,2021.9,2021.5,7.94665]
[1742392042307,5.93517,2021.9,2021.5,7.94665]
[1742392042478,0.98918,2021.9,2021.6,4.94652]
[1742392042802,4.94581,2022.0,2021.6,4.94644]
[1742392043002,4.94574,2022.0,2021.6,4.94644]
[1742392043170,4.94584,2021.9,2021.4,6.3757]
[1742392043377,4.94584,2021.9,2021.5,4.94678]
[1742392043576,4.94584,2021.9,2021.6,4.94652]
[1742392043577,0.989131,2021.9,2021.6,4.94652]
[1742392043795,4.94547,2022.1,2021.7,4.94629]
[1742392043999,4.94516,2022.2,2021.7,4.94617]
[1742392044203,1.626375,2022.3,2021.4,11.32272]
[1742392044204,1.626375,2022.3,2021.9,4.9456]
[1742392044377,5.72391,2022.4,2021.9,4.9456]
[1742392044575,4.94486,2022.3,2022.0,4.94556]
[1742392044913,6.296211,2022.4,2022.0,4.94556]
[1742392045205,4.94495,2022.3,2021.9,4.9456]
[1742392045679,4.9457,2022.0,2021.6,4.94633]
[1742392045878,4.94489,2022.3,2021.5,5.569]
[1742392046106,4.94603,2021.9,2021.5,5.569]
[1742392046311,4.94612,2021.8,2021.5,5.569]
[1742392046607,4.94717,2021.4,2021.0,4.94794]
[1742392046811,4.94752,2021.3,2020.9,4.94816]
[1742392047025,4.94752,2021.3,2020.9,4.94815]
[1742392047230,0.376859,2021.6,2020.9,4.94825]
[1742392047381,0.376859,2021.6,2020.5,4.94925]
[1742392047382,9.89668,2020.9,2020.5,0.8182]
[1742392047580,4.94755,2021.2,2020.4,4.9495]
[1742392047780,4.94912,2020.6,2020.3,5.574]
[1742392048012,4.94859,2020.8,2020.3,10.52358]
[1742392048401,4.94859,2020.8,2020.4,4.94948]
[1742392048594,0.7724,2020.9,2020.4,4.94948]
[1742392048920,4.94869,2020.8,2020.4,4.94948]
[1742392049102,9.8974,2020.8,2020.4,4.94948]
[1742392049307,4.94886,2020.7,2020.3,10.52374]
[1742392049522,5.520699,2020.8,2020.3,10.52353]
[1742392049706,0.572109,2020.8,2020.3,10.5237]
[1742392050018,4.94884,2020.7,2020.3,10.52364]
[1742392050219,4.94928,2020.5,2020.1,4.95019]
[1742392050381,4.94906,2020.6,2020.2,4.94986]
[1742392050932,5.7207,2020.9,2020.5,4.94912]
[1742392051085,6.80599121,2020.9,2020.5,9.89824]
[1742392051284,0.7724,2020.9,2020.6,4.94883]
[1742392051715,4.94838,2020.9,2020.5,4.94922]
[1742392052386,0.37511153,2021.1,2020.5,4.94922]
[1742392052585,4.94839,2020.9,2020.5,4.94914]
[1742392052785,10.886523,2020.9,2020.5,4.94914]
[1742392053010,9.89736,2020.8,2020.4,5.77591]
[1742392053217,4.94863,2020.8,2020.4,5.77591]
[1742392053415,4.94863,2020.8,2020.1,7.9502]
[1742392053416,4.94947,2020.5,2020.1,7.9502]
[1742392053602,5.524957,2020.5,2020.1,4.9502]
[1742392053910,0.8054,2020.6,2020.4,4.94951]
[1742392054081,0.36607673,2021.3,2020.8,4.94839]
[1742392054282,4.94753,2021.3,2020.8,4.94838]
[1742392054482,4.94838,2020.8,2020.7,4.94873]
[1742392054783,4.94755,2021.2,2020.8,4.94841]
[1742392055094,11.00413049,2021.2,2020.8,4.94839]
[1742392055289,4.94863,2020.8,2020.4,10.4974]
[1742392055590,6.05648049,2021.2,2020.5,9.89833]
[1742392055591,4.94835,2020.9,2020.5,9.89833]
[1742392055792,6.05648049,2021.2,2020.3,3.8329]
[1742392055793,1.10892049,2021.2,2020.3,3.8329]
[1742392055983,4.9461,2021.8,2020.3,3.8329]
[1742392055984,0.51741957,2022.5,2021.1,0.7828]
[1742392056185,4.94486,2022.3,2021.6,4.94656]
[1742392056405,4.94576,2022.0,2021.6,4.94656]
[1742392056686,4.94575,2022.0,2021.6,4.94647]
[1742392057014,0.8224,2022.4,2021.7,4.94633]
[1742392057214,2.22982406,2022.4,2022.0,4.94553]
[1742392057416,6.9463,2024.9,2022.1,0.7631]
[1742392057616,0.37079202,2023.4,2022.4,4.94438]
[1742392057803,5.58340055,2023.5,2022.7,4.94375]
[1742392058004,0.55834006,2023.4,2022.3,0.7631]
[1742392058209,4.94392,2022.7,2022.3,0.7631]
[1742392058549,4.94334,2023.0,2022.3,0.7631]
[1742392058852,3.0,2022.9,2022.3,0.7631]
[1742392058984,9.88911,2022.5,2022.1,4.94534]
[1742392059185,4.94463,2022.4,2021.9,5.70547]
[1742392059385,4.94495,2022.3,2021.9,0.7598]
[1742392059585,4.94495,2022.3,2021.9,5.7055]
[1742392059796,5.933431,2022.5,2022.0,4.94543]
[1742392059998,5.5379631,2022.4,2022.0,4.94543]
[1742392060226,4.94493,2022.3,2021.9,0.7598]
[1742392060422,9.88995,2022.3,2021.8,11.02808]
[1742392060621,4.94495,2022.3,2021.8,11.02807]
[1742392060784,0.55382931,2022.2,2021.8,11.02807]
[1742392060989,0.55382931,2022.2,2021.8,6.082]
[1742392061220,4.94553,2022.1,2021.5,11.01072]
[1742392061386,5.72336,2022.3,2021.4,6.064]
[1742392061727,4.94672,2021.6,2021.3,0.8054]
[1742392061898,4.94672,2021.6,2021.2,4.9475]
[1742392062995,4.94672,2021.6,2021.1,11.01059]
[1742392063199,4.94706,2021.4,2021.1,6.063]
[1742392063510,4.94706,2021.4,2021.0,5.76084]
[1742392063819,4.94734,2021.3,2020.9,4.94828]
[1742392064036,4.94775,2021.2,2020.8,4.94852]
[1742392064240,4.94775,2021.2,2020.7,5.71366]
[1742392064531,4.94775,2021.2,2020.7,0.7649]
[1742392064732,4.94789,2021.1,2020.6,10.99581]
[1742392065031,4.94775,2021.2,2020.7,9.89723]
[1742392065213,5.937256,2021.2,2020.8,4.94852]
[1742392065415,0.989506,2021.2,2020.9,4.94819]
[1742392065731,4.94706,2021.4,2020.8,4.94843]
[1742392066032,4.94706,2021.4,2020.9,9.89631]
[1742392066212,9.89434,2021.4,2020.9,4.94813]
[1742392066409,4.94731,2021.3,2020.9,4.94813]
[1742392066631,4.94693,2021.5,2021.1,4.94767]
[1742392067131,5.935994,2021.6,2021.1,4.94756]
[1742392067336,5.935994,2021.6,2021.2,4.94741]
[1742392067673,0.7888,2021.7,2021.4,4.94703]
[1742392067804,5.7352,2021.7,2021.3,9.89428]
[1742392068142,0.7888,2021.7,2021.4,4.94705]
[1742392068504,5.73515,2021.7,2021.3,9.89432]
[1742392068805,0.7888,2021.7,2021.4,4.94688]
[1742392069019,4.94595,2021.9,2021.5,4.94664]
[1742392069308,8.23023206,2021.9,2021.5,4.94664]
[1742392069511,17.8855,2022.0,2021.4,0.8271]
[1742392069814,22.83118,2022.0,2021.6,4.9465]
[1742392070138,22.83111,2022.0,2021.7,4.94628]
[1742392070322,17.8855,2022.0,2021.7,4.94615]
[1742392070629,19.84031226,2022.0,2021.7,4.94615]
[1742392070837,5.76602,2022.4,2021.9,4.94584]
[1742392071035,17.9264,2022.7,2021.8,6.05745645]
[1742392071236,17.9264,2022.7,2021.9,4.94584]
[1742392071237,4.94495,2022.3,2021.9,4.94584]
[1742392071446,22.68350055,2022.7,2021.8,6.008]
[1742392071447,4.94447,2022.5,2021.8,6.008]
[1742392071658,12.15694006,2022.6,2022.2,4.94506]
[1742392071833,10.21262006,2022.6,2022.1,4.94513]
[1742392072037,4.94465,2022.4,2022.0,4.94549]
[1742392072349,22.68350055,2022.7,2022.0,0.7716]
[1742392072529,4.94552,2022.1,2021.8,6.006]
[1742392072728,4.94535,2022.1,2021.8,10.95198]
[1742392073232,4.94537,2022.1,2021.8,10.95191]
[1742392073462,5.934418,2022.1,2021.8,6.006]
[1742392073657,4.94564,2022.0,2021.6,4.94644]
[1742392073935,4.94569,2022.0,2021.6,4.94657]
[1742392074140,5.934408,2022.1,2021.6,4.9464]
[1742392074371,0.989048,2022.1,2021.9,4.94575]
[1742392074666,5.76185,2022.2,2021.8,4.94606]
[1742392074866,4.94537,2022.1,2021.8,4.94606]
[1742392075182,4.94537,2022.1,2021.7,4.94629]
[1742392075370,4.94537,2022.1,2021.7,9.89233]
[1742392075567,9.89092,2022.1,2021.7,4.94615]
[1742392075771,9.89092,2022.1,2021.6,5.987]
[1742392075772,0.8167,2022.2,2021.8,4.94598]
[1742392076073,0.8167,2022.2,2021.9,4.94573]
[1742392076269,0.8167,2022.2,2021.9,9.89141]
[1742392076477,5.74549,2022.5,2022.0,4.94552]
[1742392076681,4.94476,2022.4,2022.0,4.94552]
[1742392076880,0.8011,2022.5,2022.2,4.94499]
[1742392077080,4.94473,2022.4,2022.0,5.979]
[1742392077285,4.94497,2022.3,2022.0,5.979]
[1742392077466,0.8011,2022.5,2022.0,5.979]
[1742392077771,4.94476,2022.4,2022.0,4.94549]
[1742392078142,4.94476,2022.4,2022.0,9.89093]
[1742392078369,0.8011,2022.5,2022.2,4.94497]
[1742392079002,4.94424,2022.6,2022.2,4.94497]
[1742392079143,4.9447,2022.4,2021.9,4.94578]
[1742392079345,4.9447,2022.4,2022.0,4.94548]
[1742392079675,4.94472,2022.4,2022.0,9.89093]
[1742392079977,1.82756109,2022.6,2021.8,4.94608]
[1742392080281,6.77183109,2022.6,2022.1,4.94526]
[1742392080580,4.94478,2022.4,2021.9,4.94561]
[1742392080755,4.94478,2022.4,2022.0,4.94542]
[1742392081198,2.4246342,2022.5,2022.3,4.94483]
[1742392081476,4.94462,2022.4,2022.0,4.94554]
[1742392081681,4.94495,2022.3,2022.0,4.94554]
[1742392081981,4.94494,2022.3,2021.9,4.94583]
[1742392082178,4.94489,2022.3,2021.8,10.91393]
[1742392082346,4.94489,2022.3,2021.9,4.94573]
[1742392082549,5.439379,2022.3,2021.9,4.94573]
[1742392082746,4.94489,2022.3,2021.9,4.94573]
[1742392082947,4.94471,2022.4,2021.9,4.94584]
[1742392083148,4.94458,2022.5,2021.8,5.968]
[1742392083483,4.94488,2022.3,2021.9,4.9458]
[1742392083655,4.94448,2022.5,2021.8,5.968]
[1742392083854,4.94448,2022.5,2022.0,4.94557]
[1742392084053,7.48637909,2022.5,2022.1,4.94525]
[1742392084250,22.41842088,2022.7,2022.3,4.94486]
[1742392084452,22.41842088,2022.7,2022.2,4.94502]
[1742392084700,5.74483,2022.8,2022.4,4.94451]
[1742392085003,0.8011,2022.8,2022.4,4.94443]
[1742392085152,23.059,2023.3,2022.2,6.7006]
[1742392085153,0.7953,2023.1,2022.3,3.0]
[1742392085353,0.7953,2023.1,2022.5,4.94437]
[1742392085592,0.7754,2023.8,2022.8,0.7937]
[1742392085767,4.94239,2023.4,2022.8,0.7937]
[1742392086083,9.8851,2023.3,2022.9,4.94329]
[1742392086285,4.94217,2023.4,2023.0,4.94302]
[1742392086508,6.72901,2023.7,2023.0,4.94308]
[1742392086709,9.88471,2023.4,2023.0,4.94308]
[1742392087019,4.94233,2023.4,2023.0,4.94308]
[1742392087183,4.9417,2023.6,2023.1,4.94288]
[1742392087377,6.76367405,2023.6,2023.2,4.94258]
[1742392087585,9.88309,2023.7,2023.3,4.94232]
[1742392087919,5.7166,2023.8,2023.4,4.94215]
[1742392088207,0.7754,2023.8,2023.2,10.89158]
[1742392088421,4.94242,2023.3,2023.0,4.94303]
[1742392088636,4.94168,2023.6,2022.9,4.94328]
[1742392088779,4.94252,2023.3,2022.9,4.94328]
[1742392088984,4.94281,2023.2,2022.8,11.68731]
[1742392089215,4.94272,2023.2,2022.8,11.68728]
[1742392089511,4.94272,2023.2,2022.8,16.63068]
[1742392089713,4.943,2023.1,2022.8,5.95]
[1742392089879,4.94242,2023.3,2022.8,10.89362]
[1742392090087,0.7932,2023.6,2023.1,4.94278]
[1742392090281,4.94179,2023.6,2023.2,4.94257]
[1742392090710,4.94146,2023.7,2023.1,5.70739]
[1742392090914,4.94146,2023.7,2023.2,5.937]
[1742392090915,4.94211,2023.5,2023.2,5.937]
[1742392091110,4.94205,2023.5,2023.2,5.937]
[1742392091620,4.94223,2023.4,2023.2,5.937]
[1742392092120,10.87982,2023.2,2022.9,5.922]
[1742392092291,4.94282,2023.2,2022.9,5.922]
[1742392092490,4.94242,2023.3,2022.9,10.86519]
[1742392092686,5.74099,2023.4,2023.0,4.94314]
[1742392092903,4.9425,2023.3,2022.9,4.94318]
[1742392093101,4.94193,2023.5,2023.0,4.94292]
[1742392093307,4.94193,2023.5,2023.1,4.94289]
[1742392093505,5.72172,2023.7,2023.3,4.94233]
[1742392093709,9.88317,2023.7,2023.3,4.94229]
[1742392093929,4.9417,2023.6,2023.2,10.85959]
[1742392094112,9.88357,2023.6,2023.2,10.85959]
[1742392094310,4.94255,2023.3,2022.9,10.85632]
[1742392094798,4.94246,2023.3,2022.6,7.94412]
[1742392095104,9.88603,2023.1,2022.6,10.85296]
[1742392095334,9.886,2023.1,2022.7,4.94383]
[1742392095534,4.94291,2023.1,2022.7,4.94371]
[1742392095743,4.94291,2023.1,2022.6,5.909]
[1742392095744,5.56760055,2023.5,2022.9,4.94327]
[1742392095940,4.94278,2023.2,2022.7,4.94365]
[1742392096148,4.94314,2023.1,2022.5,0.796]
[1742392096302,4.94375,2022.8,2022.5,0.796]
[1742392096512,4.94419,2022.6,2022.3,10.84885]
[1742392096865,0.7957,2023.0,2022.3,5.904]
[1742392097153,4.94354,2022.9,2022.5,4.94424]
[1742392097309,4.94366,2022.8,2022.4,4.94459]
[1742392097507,4.94294,2023.1,2022.7,4.94367]
[1742392097749,4.94277,2023.2,2022.7,4.94377]
[1742392098149,4.94339,2022.9,2022.6,10.84511]
[1742392098444,4.94308,2023.1,2022.6,5.901]
[1742392098643,4.94308,2023.1,2022.7,4.94376]
[1742392098845,4.94292,2023.1,2022.7,4.94388]
[1742392099045,5.88038524,2023.2,2022.8,4.94352]
[1742392099243,4.94298,2023.1,2022.8,4.94352]
[1742392099411,3.6386824,2023.4,2022.6,5.901]
[1742392099412,4.94214,2023.5,2022.7,0.8319]
[1742392099611,4.94218,2023.4,2023.1,4.94276]
[1742392099920,4.94221,2023.4,2023.1,4.94276]
[1742392100109,4.94276,2023.2,2023.0,5.888]
[1742392100315,0.58759082,2023.2,2022.7,6.7159]
[1742392100611,4.94334,2023.0,2022.7,6.7159]
[1742392100817,4.94384,2022.8,2022.4,8.7357]
[1742392101017,4.9434,2022.9,2022.5,10.83126]
[1742392101331,4.9434,2022.9,2022.5,15.77546]
[1742392101538,4.94296,2023.1,2022.7,4.94374]
[1742392102237,4.58643657,2023.4,2022.8,0.04943726]
[1742392102437,4.58643657,2023.5,2022.9,5.872]
[1742392102641,4.94278,2023.2,2022.9,5.872]
[1742392102852,9.52889657,2023.3,2022.9,10.8153]
[1742392103021,14.47153657,2023.3,2022.9,10.8153]
[1742392103222,4.94275,2023.2,2022.9,5.872]
[1742392103422,4.94315,2023.0,2022.6,8.70699]
[1742392103647,4.58643657,2023.1,2022.6,0.763]
[1742392103958,9.52987657,2022.9,2022.6,0.763]
[1742392104250,4.94317,2023.0,2022.6,4.94401]
[1742392104656,9.52934657,2023.1,2022.7,9.88751]
[1742392104968,9.52934657,2023.1,2022.7,3.0]
[1742392105143,4.94339,2023.0,2022.6,7.94398]
[1742392105525,9.52934657,2023.1,2022.7,4.94387]
[1742392105843,10.6929,2023.2,2022.8,4.94355]
[1742392106043,9.52935657,2023.1,2022.7,4.94384]
[1742392106852,4.58643657,2023.1,2022.7,4.94384]
[1742392107055,4.58643657,2023.3,2022.6,3.0]
[1742392107350,4.58643657,2023.3,2022.9,4.94321]
[1742392107351,9.52888657,2023.3,2022.9,4.94321]
[1742392107524,4.58643657,2023.3,2023.0,4.94313]
[1742392107725,9.52886657,2023.3,2022.9,4.94321]
[1742392107925,4.58643657,2023.1,2022.8,4.94363]
[1742392108355,4.58643657,2023.1,2022.8,9.88699]
[1742392108721,4.58643657,2023.1,2022.6,7.94388]
[1742392108920,4.58643657,2023.1,2022.8,4.94348]
[1742392109124,4.58643657,2023.1,2022.9,4.94326]
[1742392109325,4.58643657,2023.3,2023.0,4.94315]
[1742392109641,10.28829657,2023.5,2023.0,4.94305]
[1742392109956,4.94229,2023.4,2022.9,11.55308]
[1742392110257,4.94277,2023.2,2022.9,5.817]
[1742392110425,9.52896657,2023.3,2022.9,10.76034]
[1742392110625,14.47157657,2023.3,2022.9,10.76034]
[1742392110826,4.94266,2023.2,2022.9,5.817]
[1742392111343,9.52893657,2023.3,2022.9,5.817]
[1742392111562,4.94274,2023.2,2022.9,5.817]
[1742392111765,4.94293,2023.1,2022.9,5.817]
[1742392111957,4.94274,2023.2,2022.9,5.817]
[1742392112275,4.94274,2023.2,2022.8,4.94356]
[1742392112581,4.94369,2022.8,2022.5,4.94436]
[1742392112771,9.53041657,2022.7,2022.3,5.71495]
[1742392112946,9.53041657,2022.7,2022.3,5.7149]
[1742392113141,9.53041657,2022.7,2022.3,5.71487]
[1742392113142,4.58643657,2022.7,2022.3,5.71487]
[1742392113347,4.58643657,2022.9,2022.5,4.94427]
[1742392113549,5.74647,2023.0,2022.7,4.94366]
[1742392113550,0.8033,2023.0,2022.7,4.94366]
[1742392113750,4.94329,2023.0,2022.6,4.94404]
[1742392113973,4.94329,2023.0,2022.6,15.69699]
[1742392114149,9.52936657,2023.1,2022.7,4.94388]
[1742392114357,14.47246657,2023.1,2022.7,4.94388]
[1742392114570,4.58643657,2023.1,2022.8,4.94363]
[1742392114767,9.52921657,2023.2,2022.8,4.9435]
[1742392114947,4.94242,2023.3,2022.9,4.94336]
[1742392115146,9.52871657,2023.4,2022.9,4.94337]
[1742392115369,9.52871657,2023.4,2023.0,10.74213]
[1742392115370,14.47104657,2023.4,2023.0,10.74213]
[1742392115575,4.58643657,2023.4,2023.1,4.9429]
[1742392115772,4.58643657,2023.7,2023.3,4.94218]
[1742392116084,9.52765657,2023.8,2023.4,4.94207]
[1742392116664,4.94146,2023.7,2023.3,4.94235]
[1742392116863,4.94146,2023.7,2023.3,4.94223]
[1742392117083,4.94146,2023.7,2023.4,4.94215]
[1742392117282,9.52770657,2023.8,2023.4,4.94215]
[1742392117488,4.58643657,2023.8,2023.5,4.94184]
[1742392117862,26.62747657,2023.9,2023.6,4.94168]
[1742392118062,4.58643657,2024.0,2023.7,4.94132]
[1742392118387,4.9419,2023.6,2023.2,10.72062]
[1742392118556,9.52862657,2023.4,2023.2,5.778]
[1742392118955,4.58643657,2023.4,2023.2,5.778]
[1742392119156,4.94169,2023.6,2023.2,4.94262]
[1742392119484,9.52812657,2023.6,2023.2,4.94248]
[1742392119873,4.58643657,2023.6,2023.2,4.94254]
[1742392120062,9.52814657,2023.6,2023.2,4.94248]
[1742392120258,4.94242,2023.3,2023.0,4.94313]
[1742392120459,9.52862657,2023.4,2023.1,4.94289]
[1742392120763,4.94244,2023.3,2023.0,5.767]
[1742392120969,9.52862657,2023.4,2023.0,10.71011]
[1742392121162,9.52862657,2023.4,2022.9,5.73267]
[1742392121358,4.94252,2023.3,2023.0,5.763]
[1742392121596,4.943,2023.1,2022.7,4.94382]
[1742392121889,4.58643657,2023.2,2022.8,10.70451]
[1742392122087,4.58643657,2023.4,2023.0,4.94292]
[1742392122288,4.58643657,2023.4,2023.1,4.94289]
[1742392122586,4.58643657,2023.4,2023.0,5.762]
[1742392122789,5.70874541,2023.4,2023.0,5.762]
[1742392123089,4.9429,2023.1,2022.7,5.764]
[1742392123259,4.58643657,2022.8,2022.2,0.7878]
[1742392123460,9.53065657,2022.6,2022.2,0.7878]
[1742392123792,9.53066657,2022.6,2022.2,5.7329]
[1742392123990,4.58643657,2022.4,2022.1,10.70715]
[1742392124210,4.94553,2022.1,2021.6,11.7124303]
[1742392124502,5.40153657,2022.2,2021.9,4.9457]
[1742392124694,4.94513,2022.2,2021.8,4.94597]
[1742392124891,9.53136657,2022.3,2021.9,4.94581]
[1742392125098,9.53129657,2022.3,2021.9,4.94581]
[1742392125276,10.34605657,2022.5,2022.0,4.9454]
[1742392125475,4.94463,2022.4,2022.0,10.70555]
[1742392125703,7.41554289,2022.5,2022.0,10.70555]
[1742392125704,4.58643657,2022.3,2022.0,5.76]
[1742392125869,4.94532,2022.2,2022.0,5.76]
[1742392126075,9.89058,2022.2,2021.7,10.70432]
[1742392126269,9.53130657,2022.3,2021.8,4.94607]
[1742392126685,4.94519,2022.2,2021.8,4.94607]
[1742392126902,9.53130657,2022.3,2021.7,10.70432]
[1742392126903,4.58643657,2022.3,2021.7,10.70432]
[1742392127085,9.53191657,2022.1,2021.7,3.0]
[1742392127399,9.53179657,2022.1,2021.6,11.46185]
[1742392127600,15.71256986,2022.3,2021.8,4.94584]
[1742392127816,4.94487,2022.3,2021.9,4.94563]
[1742392127979,4.94516,2022.2,2021.8,4.94608]
[1742392128500,4.58643657,2022.3,2021.9,4.94584]
[1742392128705,4.94525,2022.2,2021.8,4.94599]
[1742392129004,9.53135657,2022.3,2021.8,4.94593]
[1742392129201,4.94512,2022.2,2021.9,4.94582]
[1742392129380,9.53147657,2022.3,2021.9,4.94564]
[1742392129587,4.94467,2022.4,2022.0,4.94547]
[1742392129791,4.94467,2022.4,2022.0,9.89091]
[1742392129997,30.76181,2022.8,2022.3,4.94486]
[1742392129998,20.8778,2022.8,2022.3,4.94486]
[1742392130195,20.8778,2022.8,2022.3,4.94477]
[1742392130196,4.94397,2022.7,2022.3,4.94477]
[1742392130505,4.94451,2022.5,2022.1,4.9453]
[1742392130704,4.58643657,2022.4,2022.1,4.94512]
[1742392131006,4.94447,2022.5,2022.1,4.94526]
[1742392131200,4.58643657,2022.6,2022.3,4.94467]
[1742392131408,27.40788657,2022.8,2022.4,4.9446]
[1742392131612,9.52961657,2023.0,2022.5,4.94424]
[1742392131817,9.53023657,2022.8,2022.4,10.6706]
[1742392131990,9.53023657,2022.8,2022.4,5.726]
[1742392131991,9.88808,2022.7,2022.4,5.726]
[1742392132313,4.94437,2022.5,2022.1,16.43807]
[1742392132518,4.9444,2022.5,2022.1,11.49292]
[1742392132685,15.23613657,2022.6,2022.2,4.94508]
[1742392132885,15.23613657,2022.6,2021.9,4.94575]
[1742392132886,9.53118657,2022.4,2021.9,4.94575]
[1742392133112,9.53114657,2022.4,2022.1,5.728]
[1742392133286,14.47596657,2022.4,2022.0,4.94548]
[1742392133486,4.94487,2022.3,2021.9,15.61737]
[1742392133813,4.94487,2022.3,2021.9,9.89132]
[1742392134015,4.94487,2022.3,2022.0,4.94556]
[1742392134216,4.94437,2022.5,2022.1,9.89042]
[1742392134417,4.94437,2022.5,2022.1,4.94516]
[1742392134615,10.29168657,2022.6,2022.2,4.94509]
[1742392134804,4.94445,2022.5,2022.1,9.89035]
[1742392134998,4.94478,2022.4,2022.0,4.94557]
[1742392135201,4.94511,2022.2,2021.9,5.721]
[1742392135406,4.9454,2022.1,2021.9,5.721]
[1742392135716,9.53154657,2022.2,2021.9,5.721]
[1742392135914,9.53154657,2022.2,2021.9,10.66683]
[1742392136113,14.47689657,2022.2,2021.9,5.721]
[1742392136318,9.53154657,2022.2,2021.9,5.721]
[1742392136530,4.58643657,2022.4,2021.9,10.66666]
[1742392136743,4.94498,2022.3,2021.9,10.66666]
[1742392137025,4.94498,2022.3,2021.9,15.61239]
[1742392137192,4.94486,2022.3,2021.9,5.721]
[1742392137392,4.94486,2022.3,2021.9,10.6668]
[1742392137705,7.226436,2021.9,2021.5,11.44227]
[1742392137913,9.53265657,2021.8,2021.4,4.94703]
[1742392138234,4.94682,2021.5,2021.0,4.94801]
[1742392138430,4.94739,2021.3,2021.0,5.707]
[1742392138724,4.94735,2021.3,2020.9,5.77576]
[1742392138896,4.94842,2020.9,2020.6,0.7714]
[1742392139095,4.94838,2020.9,2020.5,4.94916]
[1742392139298,9.53453657,2021.0,2020.6,4.94901]
[1742392139524,9.53453657,2021.0,2020.6,4.94892]
[1742392139699,9.53453657,2021.0,2020.7,4.94865]
[1742392139700,4.58643657,2021.0,2020.7,4.94865]
[1742392140027,4.58643657,2021.0,2020.5,4.94926]
[1742392140233,9.53457657,2021.0,2020.6,4.94892]
[1742392140404,4.58643657,2020.8,2020.4,10.65531]
[1742392140742,9.53501657,2020.8,2020.4,10.65549]
[1742392140943,4.94879,2020.7,2020.4,5.706]
[1742392141236,4.58643657,2020.6,2020.4,5.706]
[1742392141544,9.53498657,2020.8,2020.4,5.706]
[1742392141747,4.58643657,2020.8,2020.4,10.65537]
[1742392141923,4.94834,2020.9,2020.4,10.65547]
[1742392141924,4.58643657,2020.9,2020.4,10.65547]
[1742392142118,4.58643657,2020.9,2020.6,4.94883]
[1742392142430,10.32344657,2021.1,2020.5,4.94909]
[1742392142624,4.94824,2021.0,2020.5,4.94909]
[1742392142825,4.94824,2021.0,2020.6,4.94901]
[1742392143020,5.37563657,2021.1,2020.4,5.706]
[1742392143021,4.58643657,2021.1,2020.4,5.706]
[1742392143344,4.58643657,2021.6,2021.1,4.94774]
[1742392143544,9.53362657,2021.4,2021.0,5.684]
[1742392143719,5.684,2021.0,2020.7,11.42752]
[1742392143931,10.30589657,2021.2,2020.8,4.94851]
[1742392144127,5.35833657,2021.2,2020.7,5.691]
[1742392144444,5.35833657,2021.2,2020.8,4.94831]
[1742392144644,11.33656023,2021.2,2020.7,5.691]
[1742392144839,4.58643657,2021.0,2020.7,5.691]
[1742392145042,4.58643657,2021.0,2020.5,7.94906]
[1742392145246,4.94781,2021.1,2020.9,3.0]
[1742392145410,4.94781,2021.1,2020.7,7.94875]
[1742392146063,16.28436023,2021.2,2020.8,3.0]
[1742392146539,16.28436023,2021.2,2020.2,1.54969747]
[1742392146540,4.94853,2020.8,2020.3,10.64362]
[1742392146740,4.58643657,2020.8,2020.3,5.694]
[1742392146952,9.53449657,2021.0,2020.5,4.94915]
[1742392147124,4.58643657,2021.0,2020.7,4.94863]
[1742392147331,4.94834,2020.9,2020.5,4.94924]
[1742392147641,9.53449657,2021.0,2020.6,3.0]
[1742392147849,9.53448657,2021.0,2020.6,4.94892]
[1742392148152,14.48263657,2021.0,2020.7,3.0]
[1742392148446,6.37779119,2021.0,2020.6,3.0]
[1742392148619,9.53449657,2021.0,2020.6,7.94901]
[1742392148817,4.58643657,2021.0,2020.4,3.0]
[1742392149034,5.35833657,2021.2,2020.9,3.0]
[1742392149249,5.35833657,2021.2,2020.8,4.94842]
[1742392149250,5.35833657,2021.2,2020.8,3.0]
[1742392149451,4.58643657,2021.0,2020.8,3.0]
[1742392149648,4.9478,2021.1,2020.8,3.0]
[1742392149831,4.58643657,2020.9,2020.8,3.0]
[1742392150231,9.53472657,2020.9,2020.6,3.0]
[1742392150426,9.53472657,2020.9,2020.5,3.0]
[1742392150427,4.58643657,2020.7,2020.5,3.0]
[1742392150627,9.53483657,2020.9,2020.5,4.94905]